Workbook

Sheet Info
B2: Information om Årsredovisningsmall
B3: ='F-sida'!E1 -> 014214s AB-K-min Årsredovisningsmall.xls (version 2009.12)
B5: Detta är en miniversion av årsredovisningsmall för enskilt bolag med
B6: kostnadsslagsindelad resultaträkning enligt ÅRL.
B8: Observera! Användning av modellen sker på eget ansvar. KPMG
B9: ansvarar således inte för modellens funktionalitet i alla avseenden
B10: eller att modellen utgör en komplett sammanställning över samtliga upplysningskrav
B11: föranledda av lagstiftning eller normgivning.
B12: För klientföretag, som förvärvat KPMGs årsredovisningsmodell förutsätts i första
B13: hand att support lämnas av företagets revisor eller närmaste KPMG-kontor.
B14: Årsredovisningsmallen får endast vidarebefordras till företag inom köparföretagets
B15: koncern.
B16: Rekommenderat riktpris 1 900 kronor exkl moms.
B18: Syftet med modellen är
B19: • | C19: att den skall vara så heltäckande i sitt grundutförande att man normalt inte
C20: skall behöva lägga till poster i RR, BR eller noter. Endast ren textinforma-
C21: tion och vissa kommentarer i noter kan kräva att rader infogas.
B22: • | C22: att alla belopp som kan beräknas, summeras eller länkas till exempelvis
C23: finansieringsanalys eller noter inte skall behöva matas in på nytt.
B24: • | C24: att alla felaktigt eller ofullständigt inmatade belopp automatiskt skall
C25: indikeras.
B26: • | C26: att den enkelt skall kunna anpassas till ett nytt år genom att anropa ett
C27: makro.
B28: • | C28: att alla rader i modellen som ej är relevanta eller använda skall indikeras
C29: (röd symbol I A-kolumnen) för att underlätta manuell redigering. Liten blå
C30: symbol i B-kolumnen indikerar att raden fysiskt kan tas bort utan risk för
C31: beräkningsproblem.
B33: Tekniken att arbeta med modellen är följande:
B34: • | C34: Endast celler eller områden med gul grundton skall/får fyllas i.
B35: • | C35: Vid inmatning av text på flera rader kan en snygg radfördelning
C36: åstadkommas på följande vis:1) Infoga tillräckligt många radkopior där
C37: texten skall få plats 2) Skriv in texten och bortse ifrån radlängden. 3)
C38: Markera hela det område som texten skall rymmas inom. 4) Välj Edit Fill
C39: Justify - (Redigera Fyll Justering) texten fördelas mellan raderna.
B40: • | C40: Lämpligaste arbetsgången är att fylla i de olika delarna i följande ordning;
C41: RR, BR, poster Inom linjen, Noter och Förvaltningsberättelsen.
B42: • | C42: Ej använda rader skall normalt ej tas bort utan döljas (använd färdig
C43: makroknapp). Rader i rena textområden (t ex i FB eller vissa noter) kan
C44: dock tas bort fysiskt om så önskas (Dessa är indikerade med blå punkter
C45: i B-kolumnen.
B46: • | C46: Använda noter numreras manuellt i notapparaten. Härvid länkas
C47: notnumret till aktuell post i RR eller BR.
B48: • | C48: När alla delar är ifyllda och ej använda rader och noter har gömts, sker
C49: förhandsgranskning på skärm eller utskrift på papper.
B50: • | C50: Slutlig anpassning görs genom att infoga lämpliga sidbrytningar i
C51: notapparaten.
B52: • | C52: Utskrift sker sedan genom att först skriva ut bladet "Årsredovisning".
C53: F-sidans uppgifter beträffande sidhänvisningar fylls sedan i före utskrift.
B55: Att notera
B56: • | C56: Område reserverat för respektive not framgår ur prickade vågräta linjer
C57: i kolumnerna A och B.
B58: • | C58: Modellen är dokumentskyddad men utan lösenord.
B59: • | C59: För att på ett effektivt sätt dra nytta av modellens kapacitet förutsätts
C60: vissa Excelkunskaper.
B61: • | C61: Om man själv gör anpassningar i notapparaten, exempelvis lägger till eller
C62: flyttar noter, kan det förberedda årsbytesmakrot behöva redigeras.
C63: Årsbytesmakrot arbetar med färdigdefinierade områdesnamn som om
C64: man lägger till eller flyttar noter kan behöva omdefinieras för att fungera.
B66: Befintliga varianter av modellen
B67: • | C67: Maxversion för koncern, funktions- resp kostnadsslagsindelad
C68: resultaträkning
B69: • | C69: Maxversion för enskilt bolag, funktions- resp kostnadsslagsindelad
C70: resultaträkning
B71: • | C71: Miniversion för mindre enskilda bolag, kostnadsslagsindelad
C72: resultaträkning
B74: Detta är Windows-version för Excel och kan inte köras på Macintosh
B75: utan särskild layoutkonvertering.
B77: Synpunkter på modellen kan lämnas till Louise Sjödin, KPMG
B78: AAS i Stockholm. E-mail: louise.sjodin@kpmg.se.
B79: Tekniska förfrågningar kan göras till Micael Brunosson, KPMG Växjö
B80: E-mail: micael.brunosson@kpmg.se

Sheet Uppdateringar
B2: Årsredovisningsmall
B3: ='F-sida'!E1 -> 014214s AB-K-min Årsredovisningsmall.xls (version 2009.12)
B5: Tidigare utgåvor (ÅÅMM) = 9709, 9710, 9711, 9712, 9801, 9804, 0002, 0103 och 0411
B7: Uppdateringar i version 2000-08-18
B8: 1) | C8: Vissa indexformler som tidigare felaktigt summerade värden från
C9: jämförelseåret i notapparaten har åtgärdats.
B11: 2) | C11: Vissa formler som beräknade och indikerade för rader som kunde
C12: gömmas i kassaflödesanalys och notapparat innehöll tidigare referensfel eller
C13: en felaktig radförskjutning vilket har rättats i denna version.
B15: Uppdateringar i version 2001-03-07
B16: 1) | C16: Anpassning för redovisning av leasingavtal enligt Bokföringsnämndens
C17: lättnadsregler BFNAR 2000:4.
B19: 2) | C19: Anpassning för redovisning av allokerade företagsanknutna medel från SPP.
B21: Uppdateringar i version 2002-11-30
C22: Anpassning till Bokföringsnämndens Allmänna råd.
C23: -BFNAR 2001:1 Redovisning av inkomstskatt
C24: -BFNAR 2001:3 Redovisning av materiella anläggningstillgångar
B26: Uppdateringar i version 2004-01-31
C27: Anpassning till förändringar i Årsredovisningslagen (1995:1554)
C28: -ÅRL 5 kap 18a § Sjukfrånvaro
C29: -ÅRL 5 kap 18b § Könsfördelning i företagsledningar
C30: Anpassning till Bokföringsnämndens Allmänna råd.
C31: -BFNAR 2003:3 Redovisning av intäkter
B33: Uppdateringar i version 2004-11-30
C34: Anpassningar till förändringar i Årsredovisningslagen (1995:1554)
C35: -ÅRL 6 kap 1§ Information om finansiella risker
C36: -ÅRL 4 kap 14a §-14e Värdering av finansiella instrument och säkrade poster
C37: -ÅRL 5 kap 4a § - 4c Upplysningar om finansiella instrument
B39: Uppdateringar i version 2006.12
C40: Anpassning till ändringar i Årsredovisningslagen avseende upplysning i förvaltningsberättelsen.
C41: -ÅRL 6 kap 1§ första stycket om förklaring av belopp i rapporterna
B44: Att notera:
B45: 1) | C45: Små icke-noterade koncerner (10/24-bolag) behöver ej upprätta
C46: koncernredovisning (ÅRL 7:3, lagändring med tillämpning från 2000)
B48: 2) | C48: Dispenskravet för förkortad resultaträkning av konkurrensskäl är
C49: borttaget för bolag som inte omfattas av kravet på finansieringsanalys/-
C50: kassaflödesanalys. Nettoomsättning måste dock framgå (ÅRL 4:11,
C51: lagändring med tillämpning från 2000).
B53: Uppdateringar i version 2007.11
B55: Att notera:
B56: 1) | C56: Begreppen stora, medelstora och småföretag (10/24 bolag) har ersatts med större företag och mindre företag
B58: 2) | C58: Redaktionella ändringar
B60: Uppdateringar i version 2008.12
C62: Huvudsakligen redaktionella ändringar.
B65: Uppdateringar i version 2009.12
C67: Huvudsakligen redaktionella ändringar.

Sheet F-sida
E1: 014214s AB-K-min Årsredovisningsmall.xls (version 2009.12)
E11: Styrelsen för
E13: BRF Falken 1
E14: Org nr 769616-0915
E17: får härmed avge
E18: Årsredovisning
E20: för räkenskapsåret 1 januari - 31 december 2016
D29: Innehåll: | F29: sida
D30: Förvaltningsberättelse | F30: 2
D31: Resultaträkning | F31: 4
D32: Balansräkning | F32: 5
D33: Ställda säkerheter och ansvarsförbindelser | F33: 6
D34: Noter med redovisningsprinciper och
D35: bokslutskommentarer | F35: 7
D36: Underskrifter | F36: 9

Sheet ÅRSREDOVISNING
O1: Jmf-år
C2: ='F-sida'!E13 -> BRF Falken 1
C3: ='F-sida'!E14 -> Org nr 769616-0915
D7: Förvaltningsberättelse
D9: Allmänt om föreningen
D10: Föreningen har tilländamål att främja sina medlemmars ekonomiska intressen genom att i
D11: föreningens ägda fastighet i Åre Björnen upplåta fritidsbostäder åt medlemmarna till nyttjande
B12: w | D12: utan tidsbegräning. | F12: Föreningen beskattas som en äkta förening.
B13: w
B14: w
B15: w
B16: w
B17: w
B18: w
B19: w
B22: w
B26: w
B27: w
B28: w | D28: Föreningens byggnad
D29: Föreningen förvärvade den nybyggda fastigheten Åre Svedje 1:319 i slutet av 2007. Byggnaden är
D30: fullvärdesförsäkrad hos Moderna Försäkringar genom medlemskap i Bostadsrätterna.
D32: Föreningens byggnad utgörs av ett flerbostadshus med 2 våningar innehållande fyra
D33: lägenheter.
D35: Den totala boytan uppgår till 280 kvm, varav 276 kvm utgör lägenhetsyta.
D36: Förvaltningen sköts av styrelsen.
D38: Lägenhetsfördelning
D39: Fyra lägenheter med 4 rum och köksavdelning à 69 kvm. Lägenheterna i plan 2 har dessutom
D40: ett mindre sovloft med takhöjd under 1,9 meter med plats för två sängar.
D43: Fastighetens tekniska status
D44: Under 2014 har skorstenar och takpannor reparerats efter stormar. Ytterligare en p-plats har anlagts
D45: samt gräsytor snyggats upp. En underhållsplan finns upprättad. Under 2015 har bredband
D46: installerats. Under 2017 har utvändig målning av fastigheten genomförts och dräneringsrör har nedlagts.
D48: Föreningsfrågor
D49: Stadgar
D50: Föreningens gällande stadgar registrerades hos Bolagsverket 2007-02-20.
D51: För att reglera förhållandet mellan de personer som tillsammans äger samma bostadsrätt i
D52: plan 2 har upprättats speciella samägarvillkor. Dessa förändrades 2012-01-01.
D54: Andelar
D55: Föreningen innehåller fyra lägenheter med andelstal om 25% per lägenhet.
D56: De två lägenheterna i plan 2 är fördelade på vardera 10 andelar.
D58: Medlemmar
D59: Föreningen hade vid årets slut 38 medlemmar som äger lägenhetsandelar enligt köpehandlingar.
D60: En ny medlem har antagits år 2017.
D62: Samfällighet
D63: Samtliga fastighetsägare i Åre Björnen är, genom lantmäteriförättning, anslutna till Åre Björnen
D64: Samfällighetsförening (ÅBS).
D65: ÅBS svarar för underhåll och drift/skötsel av vägar, vägbelysning, VA- och Kabel-TV nät
D66: samt avfallshantering inom och från området.
D67: För detta arbete tar ÅBS ut en medlemsavgift som baseras på andelstal som fastställs per
D68: lägenhet när fastigheten ansluts och har erhållit bygglov.
D70: Föreningen är även medlem i Fröåvägens samfällighet vilken svarar för underhåll och drift/skötsel av
D71: Fröåvägen och stickvägen förbi Björnen liftens dalstation samt gatubelysningen upp till Åre Björnen.
D72: För detta arbete tar samfälligheten ut en andelsavgift som baseras på andelstal per lägenhet.
D74: Styrelse, revisorer och valberedning
D76: Styrelse
D77: Enligt föreningens stadgar skall styrelsen bestå av lägst 3 och högst 5 ledamöter och högst 3
D78: suppleanter. Styrelsen har följande sammansättning:
D80: Kerstin Edman | G80: Ordförande
D81: Peo Axelsson | G81: Sekreterare
D82: Claes Engblom | G82: Kassör
D83: Kenneth Johansson | G83: Styrelsesuppleant
D84: Marika Dymling | G84: Styrelsesuppleant
D86: Revisorer
D87: Carina Staf | G87: Ordinarie
D88: Mattias Kylner | G88: Revisorssuppleant
D90: Valberedning
D91: Vivi Steen
D92: Elisabet Schell
D94: Under verksamhetsåret har styrelsen haft fem styrelsemöten samt flertalet mail- och telefonkontakter.
D96: Föreningens ekonomi
D98: Kapitaltillskott
D99: I december 2012 amorterades banklån med SEK 100 000 vilket skall betraktas som
D100: kapitaltillskott som medlemmar kan dra nytta av vid kommande försäljningar. Ytterligare
D101: SEK 300 000 amorterades i december 2014. I november 2017 har banklån amorterats med SEK 250 000.
B103: w | D103: Fastighetavgift
B104: w | D104: Från och med 2015 till och med 2017 erlägger föreningen halv fastighetsavgift och från 2018
B105: w | D105: kommer full fastighetsavgift belasta föreningen.
D107: Ekonomisk historik
B108: w | D108: Se bilaga 1.
B109: w
B110: w
B111: w
B112: w
D113: Verksamhet inom forskning och utveckling
D114: [ Löpande text:]
D115: [ Upplysning ska, enligt ÅRL 6 kap 1§ 4p, lämnas av de företag som bedriver omfattande forskning och utveckling.
D116: Om upplysning ska lämnas bör det ingå en koncentrerad verbal beskrivning av företagets forsknings- och
D117: utvecklingspolicy, inriktning och resursinsatser samt uppgifter om verksamhetens andel av de totala
D118: rörelsekostnaderna och om förändringar under året. ]
D120: Byte av redovisningsprincip
D121: [Om företaget tillämpat nya rekommendationer som fått väsentlig effekt på resultat och ställning bör detta omnämnas
D122: även i förvaltningsberättelsen och inte bara i noterna.]
D123: Från och med den 1 januari 20XX tillämpar företaget BFNARX. Införandet av den/de nya
D124: rekommendationen/erna har inneburit ett byte av redovisningsprinciper och har haft
D125: betydande effekt på resultat- och balansräkningarna. För att uppnå jämförbarhet över
D126: företagets utveckling och ställning har omräkning skett av jämförelseåret/en.
D128: Riktade emissioner m m
D129: [ Löpande text: ]
D130: [ Information skall i förekommande fall lämnas om transaktioner enligt aktiebolagslagen (2005:551) 16 kap 10§. ]
D132: Uppgifter om förvärv, överlåtelse samt innehav av egna aktier
D133: [ Löpande text: ]
D136: Återköp av egna aktier
D137: [ Löpande text:]
D138: [ Upplysning skall lämnas om återköp av egna aktier. Uppgift skall lämnas om antal egna aktier som förvärvats resp
D139: avyttrats under året samt kvarstående innehav vid årets slut. Upplysning skall även lämnas om skälen till de förvärv
D140: eller överlåtelser som skett under året. Tillsammans med dessa uppgifter skall även anges kvotvärdet andel av
D141: aktiekapitalet samt vederlagets storlek. ]
D143: Förslag till disposition beträffande föreningens vinst eller förlust
D145: Till bolagsstämmans förfogande står följande ansamlad vinst:
N146: 0
D147: Balanserat resultat | L147: 85566 | N147: 0
D148: Årets resultat | L148: 23465 | N148: 0
D149: Totalt | L149: =SUM(L147:L148) -> 109031 | N149: =SUM(N146:N148) -> 0
D151: Styrelsen föreslår att den ansamlade vinsten behandlas enligt följande:
D152: Avsättning till fond för yttre underhåll | L152: 21150
D153: Balanseras i ny räkning | L153: 87881
D157: Beträffande föreningens resultat och ställning i övrigt hänvisas till följande resultat- och
D158: balansräkning med noter.
D160: Enligt ABL 18 kap 2§ ska styrelsen, eller om förslaget väckts av någon annan, förslagsställaren (förslag från aktieägarminoritet undantaget) upprätta ett förslag till beslut om vinstutdelning. Det är inget krav att infoga detta ”förslag till beslut om vinstutdelning” i förvaltningsberättelsen (innehållsmässiga krav som åsyftas framgår av ABL 18 kap 3§ och ska inte sammanblandas med ÅRLs upplysningskrav om vinstdisposition i 6 kap 2§, ovan). Enligt ABL 18 kap 4§ ska vidare till förslaget om vinstutdelning fogas ett motiverat yttrande från styrelsen om huruvida den föreslagna vinstutdelningen är försvarlig med hänvisning till försiktighetsregeln i ABL 17 kap 3§ andra och tredje stycket.
D163: Resultaträkning
K164: 2017-01-01 | M164: 2016-01-01 | O164: 2012-01-01 | T164: =#REF!=#REF! -> 
D165: Belopp i kr | I165: Not | K165: - 2017-12-31 | M165: - 2016-12-31 | O165: - 2012-12-31 | T165: =#REF! -> 
D167: Årsavgifter | K167: 144000 | M167: 144000 | O167: 253963
D168: Förändring av produkter i arbete, färdiga varor
D169: samt pågående arbeten för annans räkning | K169: 0 | M169: 0 | O169: 0
D170: Övriga rörelseintäkter | K170: 0 | M170: 0 | O170: 0
D171: Årsavgifter tillägg lgh A+B (utöver fondavsättning) | K171: 47067 | M171: 45337
D172: Förseningsavgift | K172: 0 | M172: 50
D173: Summa avgifter | K173: =SUM(K167:K172) -> 191067 | M173: =SUM(M167:M172) -> 189387 | O173: 253963
D175: Rörelsens kostnader
D176: Driftskostnader | I176: 1 | K176: -63441 | M176: -38025 | O176: -90654
D177: Driftskostnader lgh A | I177: 1 | K177: -20010 | M177: -28727
D178: Driftskostnader lgh B | I178: 1 | K178: -27057 | M178: -16610
D179: Övriga externa kostnader | K179: -7567 | M179: -9625 | O179: -21830
D180: Avskrivningar av materiella
D181: Avskrivningar | I181: =MID($D$612,5,2) ->  | K181: -23500 | M181: -23500 | O181: -70500
D182: Övriga rörelsekostnader | K182: 0 | M182: 0 | O182: 0
D183: Rörelseresultat | K183: =SUM(K173:K182) -> 49492 | M183: =SUM(M173:M182) -> 72900 | O183: 70979
D185: Resultat från finansiella poster
D186: Resultat från övriga värdepapper och fordringar
D187: som är anläggningstillgångar | K187: 0 | M187: 0 | O187: 0
D188: =IF(SUM(L186:M187)=0,"Ränteintäkter och liknande resultatposter","Övriga ränteintäkter och liknande resultatposter") -> Ränteintäkter och liknande resultatposter | O188: 1273.42
D189: Räntekostnader och liknande resultatposter | K189: -23471 | M189: -24500 | O189: -64993
D190: Resultat efter finansiella poster | K190: =SUM(K183:K189) -> 26021 | M190: =SUM(M183:M189) -> 48400 | O190: 7259.42
D192: Aktieägartillskott | K192: 0 | M192: 0 | O192: 0
D193: Bokslutsdispositioner | I193: =MID($D$626,5,2) ->  | K193: 0 | M193: 0 | O193: 0
D194: Resultat före skatt | K194: =SUM(K190:K193) -> 26021 | M194: =SUM(M190:M193) -> 48400 | O194: 7259.42
D196: Skatt | K196: 0 | M196: 0 | O196: 0
D197: Fastighetsskatt | K197: -2556 | M197: -2503
D198: Årets resultat | K198: =SUM(K194:K197) -> 23465 | M198: =SUM(M194:M197) -> 45897 | O198: 7259.42
D201: Balansräkning
D202: =D$165 -> Belopp i kr | I202: Not | K202: 2017-12-31 | M202: 2016-12-31 | O202: 2012-12-31
D203: TILLGÅNGAR
D204: Anläggningstillgångar
D205: Immateriella anläggningstillgångar
D206: Balanserade utgifter för utvecklingsarbeten
D207: och liknande arbeten | I207: =MID($D$646,5,2) ->  | K207: 0 | M207: 0 | O207: 0
D208: Hyresrätter och liknande rättigheter | I208: =MID($D$673,5,2) ->  | K208: 0 | M208: 0 | O208: 0
K209: =SUM(K205:K208) -> 0 | M209: =SUM(M205:M208) -> 0 | O209: 0
D210: Materiella anläggningstillgångar
D211: Byggnader och mark | I211: =MID($D$702,5,2) -> 2 | K211: 7612325 | M211: 7635825 | O211: 7776825
D212: Maskiner och andra tekniska anläggningar | I212: =MID($D$749,5,2) ->  | K212: 0 | M212: 0 | O212: 0
D213: Inventarier, verktyg och installationer | I213: =MID($D$789,5,2) ->  | K213: 0 | M213: 0 | O213: 0
D214: Pågående nyanläggningar och förskott
D215: avseende materiella anläggningstillgångar | I215: =MID($D$830,5,2) -> 2 | K215: 0 | M215: 0 | O215: 0
K216: =SUM(K210:K215) -> 7612325 | M216: =SUM(M210:M215) -> 7635825 | O216: 7776825
D217: Finansiella anläggningstillgångar
D218: Långfristiga värdepappersinnehav | I218: =MID($D$842,5,2) ->  | K218: 0 | M218: 0 | O218: 0
D219: Andra långfristiga fordringar | I219: =MID($D$882,5,2) ->  | K219: 0 | M219: 0 | O219: 0
K220: =SUM(K217:K219) -> 0 | M220: =SUM(M217:M219) -> 0 | O220: 0
D221: Summa anläggningstillgångar | K221: =SUM(K204:K220)/2 -> 7612325 | M221: =SUM(M204:M220)/2 -> 7635825 | O221: 7776825
D222: Omsättningstillgångar
D223: Varulager m m
D224: Råvaror och förnödenheter | K224: 0 | M224: 0 | O224: 0
D225: Varor under tillverkning | K225: 0 | M225: 0 | O225: 0
D226: Färdiga varor och handelsvaror | K226: 0 | M226: 0 | O226: 0
D227: Pågående arbete för annans räkning | I227: =MID($D$910,5,2) ->  | K227: 0 | M227: 0 | O227: 0
D228: Förskott till leverantörer | K228: 0 | M228: 0 | O228: 0
K229: =SUM(K223:K228) -> 0 | M229: =SUM(M223:M228) -> 0 | O229: 0
D230: Kortfristiga fordringar
D231: Förskott till leverantörer | K231: 0 | M231: 0 | O231: 0
D232: Avgifts fordringar | K232: 0 | M232: 0 | O232: 135576
D233: Skattefordringar | K233: 0 | M233: 0 | O233: 0
D234: Övriga fordringar | K234: 0 | M234: 0 | O234: 0
D235: Förutbetalda kostnader och upplupna intäkter | K235: 0 | M235: 0 | O235: 0
K236: =SUM(K230:K235) -> 0 | M236: =SUM(M230:M235) -> 0 | O236: 135576
D238: Kortfristiga placeringar | I238: =MID($D$922,5,2) -> 3 | K238: 0 | M238: 0 | O238: 0
D240: Kassa och bank | K240: 29660 | M240: 214591 | O240: 100010
D241: Summa omsättningstillgångar | K241: =K232+K240 -> 29660 | M241: 214591 | O241: 235586
D242: SUMMA TILLGÅNGAR | K242: =K221+K241 -> 7641985 | M242: 7850416 | O242: 8012411
D245: Balansräkning
D246: =D$165 -> Belopp i kr | I246: Not | K246: =K$202 -> 2017-12-31 | M246: =M$202 -> 2016-12-31 | O246: 2012-12-31
D247: EGET KAPITAL OCH SKULDER
D248: Eget kapital | I248: =MID($D$937,5,2) -> 4
D249: Bundet eget kapital
D250: Medlemsinsatser | K250: 6900000 | M250: 6900000 | O250: 6900000
D251: Fond för yttre underhåll | K251: 103825 | M251: 82675 | O251: 0
K252: =SUM(K249:K251) -> 7003825 | M252: =SUM(M249:M251) -> 6982675 | O252: 6900000
D253: Fritt eget kapital
D254: Överkursfond
... 702 more rows

Sheet Sheet1 (hidden)
